bitfinex-derivatives/quotes_ETHF0:USTF0_20251001
["timestamp","ask_amount","ask_price","bid_price","bid_amount"]
[1759315704150,2.22945,4292.7,4292.6,2.44226]
[1759315704343,2.22945,4292.7,4292.6,1.67996]
[1759315704544,2.22945,4292.7,4292.6,2.44226]
[1759315705048,2.22945,4292.7,4292.6,1.67996]
[1759315705648,2.22945,4292.7,4292.6,2.44226]
[1759315709048,2.22945,4292.7,4292.6,0.7636]
[1759315710653,2.22945,4292.7,4292.6,0.5286]
[1759315710853,2.22945,4292.7,4292.6,0.7636]
[1759315711155,2.22945,4292.7,4292.6,1.18276]
[1759315712758,2.22945,4292.7,4292.6,0.7636]
[1759315714857,2.22945,4292.7,4292.6,1.18276]
[1759315718555,2.22945,4292.7,4292.6,0.41916]
[1759315718761,2.19996,4292.6,4292.5,3.2078]
[1759315718952,2.19996,4292.6,4292.5,0.235]
[1759315719754,0.7376,4292.3,4292.2,0.6055]
[1759315720063,1.7808,4292.3,4292.2,1.6565]
[1759315720359,1.7808,4292.3,4292.2,43.2188]
[1759315722159,2.19999,4292.3,4292.2,43.2188]
[1759315723562,2.19999,4292.3,4292.2,42.9838]
[1759315723857,2.19999,4292.3,4292.2,42.4565]
[1759315724258,2.19999,4292.3,4292.2,43.2188]
[1759315727652,0.3245,4292.5,4292.1,1.2535146]
[1759315727653,2.2,4292.2,4292.1,1.2535146]
[1759315727854,2.20001,4292.1,4292.0,3.2078]
[1759315728053,2.20001,4292.1,4292.0,3.4428]
[1759315728255,2.20001,4292.1,4292.0,3.2078]
[1759315728462,2.20001,4292.1,4292.0,3.4428]
[1759315728964,2.20001,4292.1,4292.0,3.9479]
[1759315729460,2.20001,4292.1,4292.0,0.7401]
[1759315730250,2.50132,4292.0,4291.9,0.50778379]
[1759315730455,2.50132,4292.0,4291.9,0.74278379]
[1759315730855,2.50132,4292.0,4291.9,2.00228379]
[1759315731256,1.2536,4292.0,4291.9,2.00228379]
[1759315731565,1.17997,4292.5,4292.4,1.7646]
[1759315731860,1.64843992,4292.5,4292.4,5.2074]
[1759315732059,1.62523992,4292.5,4292.4,5.2074]
[1759315732259,2.14123992,4292.5,4292.4,5.2074]
[1759315734469,2.97243992,4292.5,4292.4,3.4428]
[1759315734661,2.97243992,4292.5,4291.9,4.93408379]
[1759315734662,1.62922,4292.0,4291.9,4.93408379]
[1759315734965,1.14072,4292.0,4291.9,5.58831379]
[1759315735362,2.45922,4292.0,4291.9,4.43708379]
[1759315735563,0.41922,4292.0,4291.9,5.58831379]
[1759315735967,1.62922,4292.0,4291.9,5.58831379]
[1759315736266,2.45922,4292.0,4291.9,5.16908379]
[1759315738472,2.45922,4292.0,4291.9,3.70428379]
[1759315738671,2.45922,4292.0,4291.9,3.44548379]
[1759315738876,2.92778968,4292.0,4291.9,3.44548379]
[1759315739169,2.92778968,4292.0,4291.9,3.21048379]
[1759315739471,2.92778968,4292.0,4291.9,3.93928379]
[1759315740276,2.92778968,4292.0,4291.9,0.73148379]
[1759315741073,2.92778968,4292.0,4291.9,1.96128379]
[1759315742073,2.92778968,4292.0,4291.9,0.23768379]
[1759315742274,2.92778968,4292.0,4291.9,0.73148379]
[1759315742475,2.92778968,4292.0,4291.9,0.23768379]
[1759315742669,2.92778968,4292.0,4291.9,0.73148379]
[1759315743075,2.92778968,4292.0,4291.9,1.96128379]
[1759315743376,2.15522,4292.0,4291.9,5.16908379]
[1759315743573,2.45922,4292.0,4291.9,5.16908379]
[1759315743769,2.45922,4292.0,4291.9,4.43708379]
[1759315744378,2.45922,4292.0,4291.9,4.85631379]
[1759315744674,2.45922,4292.0,4291.9,5.58831379]
[1759315744675,1.62922,4292.0,4291.9,5.58831379]
[1759315745277,1.14072,4292.0,4291.9,5.58831379]
[1759315745471,0.0232,4292.2,4292.1,2.14281]
[1759315745676,0.0232,4292.2,4292.1,2.37781]
[1759315745976,1.14065,4292.8,4292.7,1.7236]
[1759315746171,1.14065,4292.8,4292.7,1.9586]
[1759315746571,1.62915,4292.8,4292.7,1.9586]
[1759315747272,0.41915,4292.8,4292.7,1.9586]
[1759315747677,1.62915,4292.8,4292.7,1.9586]
[1759315748077,1.14065,4292.8,4292.7,1.9586]
[1759315748278,1.62915,4292.8,4292.7,1.7236]
[1759315748481,2.15515,4292.8,4292.7,1.9586]
[1759315748679,2.15515,4292.8,4292.7,42.7586]
[1759315749181,2.15515,4292.8,4292.7,40.8]
[1759315749378,2.15515,4292.8,4292.7,41.035]
[1759315749878,2.15515,4292.8,4292.7,41.767]
[1759315751879,2.15515,4292.8,4292.7,41.532]
[1759315752181,1.21,4292.8,4292.7,41.767]
[1759315752878,1.62914,4292.8,4292.7,41.767]
[1759315753384,1.62914,4292.8,4292.7,42.18615]
[1759315754682,1.21,4292.8,4292.7,42.18615]
[1759315754986,1.62914,4292.8,4292.7,42.18615]
[1759315755186,1.21,4292.8,4292.7,42.18615]
[1759315755388,0.7215,4292.8,4292.7,42.18615]
[1759315755976,0.44233,4293.0,4292.9,1.41073]
[1759315756183,1.65233,4293.0,4292.9,2.37773]
[1759315756381,1.62913,4293.0,4292.9,2.37773]
[1759315756689,1.21,4293.0,4292.9,2.37773]
[1759315757688,1.63127977,4293.3,4293.2,2.1427]
[1759315757887,2.09924979,4293.3,4293.2,2.3777]
[1759315759187,1.63127977,4293.3,4293.2,2.3777]
[1759315759989,1.21217977,4293.3,4293.2,2.3777]
[1759315760989,0.72367977,4293.3,4293.2,2.3777]
[1759315761893,1.14276977,4293.3,4293.2,2.3777]
[1759315762092,0.72367977,4293.3,4293.2,2.3777]
[1759315762497,1.14276977,4293.3,4293.2,2.3777]
[1759315762690,1.61806977,4293.3,4293.2,2.3777]
[1759315763291,2.11886977,4293.3,4293.2,2.3777]
[1759315763503,2.11886977,4293.3,4293.2,0.4938]
[1759315763690,2.11886977,4293.3,4293.2,0.7288]
[1759315764194,2.11886977,4293.3,4293.2,1.9868]
[1759315764495,2.11886977,4293.3,4293.2,1.6584]
[1759315764693,2.11886977,4293.3,4293.2,2.4059]
[1759315767296,2.11886977,4293.3,4293.2,1.6584]
[1759315767500,2.58530714,4293.3,4293.2,2.4059]
[1759315767801,2.58530714,4293.3,4293.2,1.6584]
[1759315767989,2.58530714,4293.3,4293.1,3.2078]
[1759315767990,0.4191,4293.2,4293.1,3.2078]
[1759315768196,2.65633737,4293.2,4293.1,3.4428]
[1759315768793,2.65633737,4293.2,4293.1,3.9418]
[1759315769098,2.65633737,4293.2,4293.1,3.4428]
[1759315769292,2.65633737,4293.2,4293.1,3.9418]
[1759315770001,2.65633737,4293.2,4293.1,3.2078]
[1759315770392,2.65633737,4293.2,4293.1,3.4428]
[1759315770696,2.65633737,4293.2,4293.1,3.9418]
[1759315770892,2.65633737,4293.2,4293.1,3.4428]
[1759315772504,2.65633737,4293.2,4293.1,3.2078]
[1759315772697,2.65633737,4293.2,4293.1,3.4428]
[1759315774704,2.65633737,4293.2,4293.1,0.235]
[1759315778098,2.65633737,4293.2,4292.8,1.42864]
[1759315778099,0.41913,4292.9,4292.8,1.42864]
[1759315778400,1.66973,4292.9,4292.8,2.41114]
[1759315778600,2.13616737,4292.9,4292.8,2.41114]
[1759315778801,2.65636737,4292.9,4292.8,1.992]
[1759315779406,2.65636737,4292.9,4292.8,2.41114]
[1759315783302,2.65636737,4292.9,4292.8,0.734]
[1759315785007,2.65636737,4292.9,4292.8,1.15314]
[1759315785209,2.23723737,4292.9,4292.8,1.15314]
[1759315785708,2.23723737,4292.9,4292.8,2.41114]
[1759315787409,2.23841903,4292.9,4292.8,2.41114]
[1759315789711,2.65754903,4292.9,4292.8,2.41114]
[1759315790713,2.23841903,4292.9,4292.8,1.66364]
[1759315791011,2.65754903,4292.9,4292.8,1.66364]
[1759315791807,2.65754903,4292.9,4292.8,2.41114]
[1759315792213,2.65754903,4292.9,4292.8,1.66364]
[1759315792414,2.65754903,4292.9,4292.8,1.15314]
[1759315794210,0.41915,4292.8,4292.7,0.41915]
[1759315794409,2.62966903,4292.8,4292.7,1.16395]
[1759315794615,2.21051903,4292.8,4292.7,1.16395]
[1759315794913,2.62965903,4292.8,4292.7,1.16395]
[1759315795114,2.62965903,4292.8,4292.7,0.7448]
[1759315795413,2.16205,4292.7,4292.6,3.3941]
[1759315795613,2.62966903,4292.7,4292.6,0.1863]
[1759315795809,2.62966903,4292.7,4292.4,0.235]
[1759315795810,1.70417,4292.5,4292.4,0.235]
[1759315796015,2.91858903,4292.5,4292.4,0.235]
[1759315798617,2.1621,4292.2,4292.1,3.2078]
[1759315798815,1.45492,4292.0,4291.9,40.80268379]
[1759315799020,1.92253903,4292.0,4291.9,41.03768379]
[1759315799218,2.91863903,4292.0,4291.9,0.00268379]
[1759315799421,2.91863903,4292.0,4291.9,0.23768379]
[1759315799818,2.91863903,4292.0,4291.9,41.03768379]
[1759315802420,7.91863903,4292.0,4291.9,40.80268379]
[1759315802619,8.15363903,4292.0,4291.9,0.00268379]
[1759315803019,1.41533,4291.9,4291.8,3.79e-06]
[1759315803223,2.1622,4291.2,4291.1,4.8952]
[1759315803522,2.1622,4291.2,4291.1,4.4257]
[1759315803720,2.1622,4291.2,4291.1,5.1302]
[1759315804117,2.1622,4291.2,4291.1,5.1325032]
[1759315804318,1.6697,4291.2,4291.1,45.9325032]
[1759315804520,0.4193,4291.2,4291.1,45.9325032]
[1759315805325,1.1661,4291.2,4291.1,45.9325032]
[1759315807226,1.1661,4291.2,4291.1,45.6975032]
[1759315807526,1.4011,4291.2,4291.1,40.70343005]
[1759315807825,2.16228,4290.4,4290.3,0.9829]
[1759315808018,2.16228,4290.4,4290.3,1.2179]
[1759315808227,2.16228,4290.4,4290.3,42.7224]
[1759315808525,2.16228,4290.4,4290.3,41.54765929]
[1759315808921,2.16228,4290.4,4290.3,42.25215929]
[1759315809122,1.66978,4290.4,4290.3,42.25215929]
[1759315809317,1.66978,4290.4,4289.6,3.2078]
[1759315809318,1.7429,4289.7,4289.6,3.2078]
[1759315809522,2.16235,4289.7,4289.5,0.235]
[1759315809827,0.7468,4289.6,4289.5,41.035]
[1759315810223,1.74483801,4289.6,4289.5,0.51216255]
[1759315810421,1.74483801,4289.6,4289.5,0.74716255]
[1759315810627,1.74483801,4289.6,4289.5,41.54716255]
[1759315811528,1.74483801,4289.6,4289.5,0.51216255]
[1759315811730,1.74483801,4289.6,4289.5,0.74716255]
[1759315811921,0.41951,4289.0,4288.9,0.51854551]
[1759315812126,2.45131,4289.0,4288.9,0.51854551]
[1759315812629,2.45131,4289.0,4288.9,0.99164551]
[1759315812929,2.45131,4289.0,4288.9,0.9946107]
[1759315814932,1.95881,4289.0,4288.9,1.3937107]
[1759315815126,1.16631,4289.0,4288.9,1.3937107]
[1759315816024,0.7468,4289.4,4288.9,0.9946107]
[1759315816227,0.41947,4289.4,4289.3,1.382]
[1759315816423,1.16627,4289.4,4289.3,1.382]
[1759315816627,1.66987,4289.4,4289.3,1.617]
[1759315817723,1.16627,4289.4,4289.3,1.617]
[1759315818130,1.66987,4289.4,4289.3,1.382]
[1759315818331,1.66987,4289.4,4289.3,1.2179]
[1759315818533,2.16237,4289.4,4289.3,1.2179]
[1759315818732,2.16237,4289.4,4289.3,0.9829]
[1759315819030,0.2889,4289.5,4288.9,0.4108107]
[1759315819031,1.95881,4289.0,4288.9,0.9946107]
[1759315819235,1.95881,4289.0,4288.9,1.2296107]
[1759315819736,1.5393,4289.0,4288.9,1.2296107]
[1759315820138,1.5393,4289.0,4288.9,1.6370107]
[1759315820537,2.47231,4289.0,4288.9,1.2296107]
[1759315821235,2.47231,4289.0,4288.9,0.0117107]
[1759315821542,2.47231,4289.0,4288.9,0.2467107]
[1759315822537,2.47231,4289.0,4288.9,1.2177107]
[1759315824841,2.47231,4289.0,4288.9,0.2467107]
[1759315825341,2.47231,4289.0,4288.9,0.7335107]
[1759315826039,2.47231,4289.0,4288.9,0.2467107]
[1759315827740,2.47231,4289.0,4288.9,0.0117107]
[1759315829343,2.13788,4288.3,4288.2,0.1638]
[1759315829743,2.13788,4288.3,4288.2,0.9608]
[1759315830041,1.65128,4288.3,4288.2,1.3764]
[1759315830241,1.65128,4288.3,4288.2,1.37877711]
[1759315830635,1.65128,4288.3,4288.2,0.96317711]
[1759315831141,1.65128,4288.3,4288.2,1.37877711]
[1759315831640,1.65128,4288.3,4288.2,1.79836711]
[1759315831837,1.2317,4288.3,4288.2,1.79836711]
[1759315832037,1.65128,4288.3,4288.2,1.79836711]
[1759315832240,1.65128,4288.3,4288.2,1.37877711]
[1759315833136,1.65128,4288.3,4288.2,1.38276711]
[1759315833446,1.17266,4288.6,4288.5,0.4156]
[1759315833740,0.7531,4288.6,4288.5,2.03096]
[1759315834340,1.17265,4288.6,4288.5,2.03096]
[1759315834543,0.7531,4288.6,4288.5,2.03096]
[1759315834738,1.65125,4288.6,4288.5,2.03096]
[1759315834938,0.2889,4289.0,4288.2,0.00237711]
[1759315834939,2.13788,4288.3,4288.2,0.00237711]
[1759315835144,2.13788,4288.3,4288.2,0.23737711]
[1759315835346,2.13788,4288.3,4288.2,0.00237711]
[1759315835640,2.13788,4288.3,4288.2,0.72417711]
[1759315835836,2.13788,4288.3,4288.2,0.00237711]
[1759315836041,2.13788,4288.3,4288.2,0.23737711]
[1759315836244,2.61438669,4288.3,4288.2,0.23737711]
[1759315837342,2.61438669,4288.3,4288.2,1.19817711]
[1759315837644,2.61438669,4288.3,4288.2,1.61776711]
[1759315838042,0.7531,4288.3,4288.2,2.03336711]
[1759315839335,1.7183,4288.3,4288.2,1.61776711]
[1759315840047,1.2317,4288.3,4288.2,2.03336711]
[1759315840247,1.2317,4288.3,4288.2,1.61776711]
[1759315840843,2.61554901,4288.3,4288.2,0.00237711]
[1759315841641,2.61554901,4288.3,4288.2,0.72517711]
[1759315842150,2.61554901,4288.3,4288.2,0.23837711]
[1759315842849,2.61554901,4288.3,4288.2,0.72517711]
[1759315843652,2.61554901,4288.3,4288.2,0.23837711]
[1759315843844,2.61554901,4288.3,4288.2,0.00237711]
[1759315845351,2.61554901,4288.3,4288.2,0.42196711]
[1759315845553,2.61554901,4288.3,4288.2,0.00237711]
[1759315846154,2.61554901,4288.3,4288.2,0.42196711]
[1759315847143,2.19596901,4288.3,4288.2,1.38276711]
[1759315847348,2.61554901,4288.3,4288.2,0.00237711]
[1759315849648,2.61554901,4288.3,4288.2,0.42196711]
[1759315849853,2.19596901,4288.3,4288.2,0.90876711]
[1759315850048,2.19596901,4288.3,4288.2,1.61876711]
[1759315851460,2.19596901,4288.3,4288.2,4.82656711]
[1759315851461,1.7183,4288.3,4288.2,4.82656711]
[1759315861355,1.7183,4288.3,4288.2,4.35256711]
[1759315861555,1.7183,4288.3,4288.2,4.86376711]
[1759315862962,1.7183,4288.3,4288.2,5.25376711]
[1759315862963,0.7531,4288.3,4288.2,5.25376711]
[1759315863859,0.7343,4288.5,4288.4,1.80757]
[1759315864060,0.0233,4288.5,4288.4,42.84357]
[1759315864366,0.9861,4288.5,4288.4,42.84357]
[1759315865555,0.9861,4288.5,4288.4,42.21757]
[1759315865755,0.9861,4288.5,4288.4,42.45357]
[1759315866363,0.711,4288.9,4288.8,1.80753]
[1759315866561,1.1884,4289.3,4289.2,0.998]
[1759315866760,2.151762,4289.3,4289.2,1.234]
[1759315866955,2.151762,4289.3,4289.2,1.65349]
[1759315869562,1.6809,4289.3,4289.2,1.65349]
[1759315870162,1.6809,4289.3,4289.2,0.65549]
[1759315870365,1.6809,4289.3,4289.2,0.41949]
[1759315870664,1.1884,4289.3,4289.2,1.65349]
[1759315870868,0.711,4289.3,4289.2,2.04349]
[1759315871668,1.0232,4289.5,4289.4,1.80747]
[1759315871971,0.9999,4289.5,4289.4,5.25127]
[1759315872672,1.9698,4289.5,4289.4,4.86127]
[1759315872968,1.9698,4289.5,4289.4,3.62727]
[1759315873271,1.9698,4289.5,4289.4,0.65547]
[1759315873569,1.6809,4288.9,4288.8,4.31433]
[1759315873765,1.6809,4288.9,4288.8,0.60603]
[1759315873971,1.6809,4288.9,4288.8,0.65553]
[1759315874566,1.6809,4288.9,4288.8,41.45553]
[1759315875774,1.6809,4288.9,4288.8,41.036]
[1759315878871,2.10042,4288.9,4288.8,41.45553]
[1759315882776,1.698,4288.6,4288.5,0.60606]
[1759315882975,1.698,4288.6,4288.5,0.84206]
[1759315883170,1.698,4288.6,4288.5,0.65556]
[1759315883374,2.11755,4288.6,4288.5,0.65556]
[1759315883576,2.11755,4288.6,4288.5,0.41956]
[1759315883776,2.06648,4288.3,4288.2,0.00237711]
[1759315885683,1.37553,4287.8,4287.7,3.2078]
[1759315885977,1.6469,4287.2,4287.1,3.2078]
[1759315886377,1.6469,4287.2,4287.1,3.4438]
[1759315886577,1.6469,4287.2,4287.1,3.21039735]
[1759315886781,1.6469,4287.2,4287.1,3.44639735]
[1759315887382,1.6469,4287.2,4287.1,3.21039735]
[1759315887585,1.6469,4287.2,4287.1,3.44639735]
[1759315889386,1.6469,4287.2,4287.1,3.94669735]
[1759315891882,1.6469,4287.2,4287.1,0.73889735]
[1759315894385,0.2769,4287.5,4287.4,1.74067]
[1759315894587,0.4705,4287.8,4287.7,1.321]
[1759315894891,0.4705,4287.8,4287.7,1.557]
[1759315895187,1.1615,4287.8,4287.7,1.557]
[1759315895777,1.1615,4287.8,4287.7,1.1922]
[1759315896486,1.6469,4287.8,4287.7,1.1922]
[1759315898195,2.06653,4287.8,4287.7,1.1922]
[1759315900895,2.06653,4287.8,4287.7,0.236]
[1759315902489,2.06658,4287.3,4287.2,1.37589]
[1759315902692,2.06658,4287.3,4287.2,1.61189]
[1759315902888,0.691,4287.3,4287.2,1.97669]
[1759315903386,0.2769,4287.5,4287.4,1.37587]
[1759315903592,1.38756,4287.5,4287.4,1.74067]
[1759315904592,1.58113,4287.8,4287.7,0.9562]
[1759315904795,2.06653,4287.8,4287.7,1.1922]
[1759315907792,0.71982,4288.0,4287.9,0.41962]
[1759315908092,1.38752,4288.0,4287.9,1.74062]
[1759315908297,1.85802,4288.0,4287.9,1.74062]
[1759315908693,1.85802,4288.0,4287.9,0.9562]
[1759315909398,2.34342,4288.0,4287.9,0.9562]
[1759315910502,2.34342,4288.0,4287.9,1.1922]
[1759315911890,2.34341,4288.0,4287.9,1.1922]
[1759315912094,2.34341,4288.0,4287.9,1.97662]
[1759315912295,2.34341,4288.0,4287.9,1.557]
[1759315912596,2.34341,4288.0,4287.9,0.7363]
[1759315912991,1.9238,4288.0,4287.9,1.1922]
[1759315913196,2.34341,4288.0,4287.9,1.61182]
[1759315913398,2.34341,4288.0,4287.9,1.95172]
[1759315913596,1.85801,4288.0,4287.9,1.95172]
[1759315914697,1.85801,4288.0,4287.9,42.75172]
[1759315915095,1.85801,4288.0,4287.9,42.41182]
[1759315915490,1.85801,4288.0,4287.9,41.9922]
[1759315916598,1.11061,4288.0,4287.9,42.3321]
[1759315916802,1.39231,4288.0,4287.9,42.3321]
[1759315917100,1.39231,4288.0,4287.9,42.75172]
[1759315919001,0.9727,4288.0,4287.9,42.75172]
[1759315920002,1.39231,4288.0,4287.9,42.75172]
[1759315920197,0.9727,4288.0,4287.9,42.75172]
[1759315920805,0.691,4288.0,4287.9,42.75172]
[1759315921005,0.7426,4288.2,4288.1,1.7264]
[1759315921202,0.0233,4288.2,4288.1,1.9624]
[1759315921400,1.60803,4288.9,4288.8,1.72633]
[1759315921701,1.1885,4288.9,4288.8,1.96233]
[1759315922404,0.7193,4288.9,4288.8,1.96233]
[1759315922601,1.1388,4289.2,4289.1,1.7263]
[1759315922910,2.0711,4289.2,4289.1,1.2029]
[1759315923501,1.63351,4289.0,4288.9,0.1865]
[1759315923706,2.82116608,4289.0,4288.9,0.1865]
[1759315926704,0.41955,4288.6,4288.5,0.7261]
[1759315927009,2.07115,4288.6,4288.5,0.7261]
[1759315927307,2.07115,4288.6,4288.5,0.236]
[1759315927807,1.6516,4288.6,4288.5,1.62246]
[1759315928013,1.6516,4288.6,4288.5,1.38646]
[1759315928308,1.6516,4288.6,4288.5,1.62246]
[1759315928711,2.07115,4288.6,4288.5,1.62246]
[1759315929812,1.6516,4288.6,4288.5,1.62246]
[1759315930210,1.6516,4288.6,4288.5,1.38646]
[1759315930407,1.6516,4288.6,4288.5,1.62246]
[1759315930615,0.7426,4289.2,4289.1,1.7263]
[1759315930907,0.7193,4289.2,4289.1,1.9623]
[1759315931112,1.1885,4289.2,4289.1,1.9623]
[1759315932214,1.1885,4289.2,4289.1,42.7623]
[1759315932809,1.1885,4289.2,4289.1,42.4224]
[1759315933112,1.1885,4289.2,4289.1,41.2195]
[1759315933312,1.1885,4289.2,4289.1,41.036]
[1759315933507,1.1885,4289.2,4289.1,40.8]
[1759315933814,1.60799,4289.2,4289.1,41.4555]
[1759315934410,2.07109,4289.2,4289.1,0.6555]
[1759315935412,2.07109,4289.2,4289.1,0.236]
[1759315935614,1.1388,4289.1,4289.0,40.8]
[1759315935815,2.35281,4289.0,4288.9,0.84202]
[1759315936113,2.35281,4289.0,4288.9,0.236]
[1759315939914,0.41952,4288.9,4288.8,3.2078]
[1759315940118,2.01912,4288.9,4288.8,0.236]
[1759315941215,2.01915,4288.6,4288.5,0.41955]
[1759315941419,2.01915,4288.6,4288.5,0.65555]
[1759315941916,2.01915,4288.6,4288.5,1.12235]
[1759315942515,1.5996,4288.6,4288.5,1.12235]
[1759315942712,1.1569,4288.6,4288.5,1.88305]
[1759315943316,0.7057,4288.6,4288.5,1.88305]
[1759315943714,1.1532,4288.6,4288.5,1.88305]
[1759315945222,1.594,4288.6,4288.5,0.65556]
[1759315946120,2.01355,4288.6,4288.5,0.65556]
[1759315946822,2.01355,4288.6,4288.5,0.236]
[1759315947217,2.49430241,4288.6,4288.5,0.236]
[1759315948017,0.86707,4288.4,4288.3,3.3943]
[1759315948323,2.50291361,4288.4,4288.3,3.6303]
[1759315948618,2.50291361,4288.4,4288.3,44.4303]
[1759315949617,2.50291361,4288.4,4288.3,44.2438]
[1759315950725,2.50291361,4288.4,4288.3,3.4428]
[1759315951927,2.50291361,4288.4,4288.3,0.235]
[1759315952128,1.6025,4287.8,4287.7,44.0078]
[1759315952322,1.6025,4287.8,4287.7,44.66244]
[1759315952529,1.1617,4287.8,4287.7,44.97794]
[1759315952728,1.1617,4287.8,4287.7,44.66244]
[1759315955534,1.1617,4287.8,4287.7,44.97794]
[1759315956435,1.58133,4287.8,4287.7,44.66244]
[1759315957525,1.1617,4287.8,4287.7,44.66244]
[1759315958329,1.1617,4287.8,4287.7,44.97794]
[1759315958529,0.7142,4287.8,4287.7,44.97794]
[1759315960128,0.7142,4288.4,4288.3,0.41958]
[1759315960334,1.19430974,4288.4,4288.3,1.88228]
[1759315960538,0.7142,4288.4,4288.3,1.88228]
[1759315960930,1.6025,4288.4,4288.3,0.41958]
[1759315961131,1.6025,4288.4,4288.3,0.65458]
[1759315961733,2.02207,4288.4,4288.3,0.65458]
[1759315961936,2.02207,4288.4,4288.3,0.235]
[1759315962137,1.30787,4288.4,4288.3,0.235]
[1759315962636,0.8883,4288.4,4288.3,1.09318]
[1759315962936,1.6025,4288.4,4288.3,1.09318]
[1759315965140,2.08299036,4288.4,4288.3,1.09318]
[1759315965742,2.50256036,4288.4,4288.3,1.09318]
[1759315966041,2.08299036,4288.4,4288.3,1.09318]
[1759315966234,2.50256036,4288.4,4288.3,1.09318]
[1759315966540,2.08299036,4288.4,4288.3,1.09318]
[1759315967845,2.50256036,4288.4,4288.3,1.09318]
[1759315968946,2.50256036,4288.4,4288.3,0.65458]
[1759315969247,2.50256036,4288.4,4288.3,0.41958]
[1759315969445,2.50256036,4288.4,4288.3,0.65458]
[1759315969846,2.08299036,4288.4,4288.3,1.09318]
[1759315971936,2.08299036,4288.4,4288.3,1.88228]
[1759315972141,1.64219036,4288.4,4288.3,1.88228]
[1759315972338,2.08299036,4288.4,4288.3,1.56678]
[1759315973052,2.08299036,4288.4,4288.3,0.65458]
[1759315973952,1.6025,4288.4,4288.3,0.65458]
[1759315974154,2.09050164,4288.4,4288.3,0.65458]
[1759315974350,2.51007164,4288.4,4288.3,0.41958]
[1759315974750,2.09050164,4288.4,4288.3,0.41958]
[1759315976554,2.51007164,4288.4,4288.3,0.41958]
[1759315977161,2.09050164,4288.4,4288.3,0.41958]
[1759315977859,2.51007164,4288.4,4288.3,0.41958]
[1759315978250,2.09050164,4288.4,4288.3,0.41958]
[1759315980059,2.51007164,4288.4,4288.3,0.41958]
[1759315980259,2.09050164,4288.4,4288.3,0.41958]
[1759315981159,1.33088,4288.3,4288.2,0.65458]
[1759315981356,2.10580164,4288.3,4288.2,0.65458]
[1759315981857,2.10580164,4288.3,4288.2,0.41958]
[1759315982254,2.10580164,4288.3,4288.2,1.64368]
[1759315982657,2.10580164,4288.3,4288.2,1.35218]
[1759315984664,2.10580164,4288.3,4288.2,0.88588]
[1759315984959,2.10580164,4288.3,4288.2,0.65458]
[1759315988862,2.10580164,4288.3,4288.2,0.41958]
[1759315989062,2.10580164,4288.3,4288.2,0.65458]
[1759315999067,2.10580164,4288.3,4288.2,1.12088]
[1759315999369,2.10580164,4288.3,4288.2,1.58718]
[1759315999570,2.10580164,4288.3,4288.2,0.65458]
[1759316000372,2.10580164,4288.3,4288.2,0.41958]
[1759316000575,2.10580164,4288.3,4288.2,0.65458]
[1759316000963,2.10580164,4288.3,4288.2,0.41958]
[1759316001177,2.10580164,4288.3,4288.2,0.65458]
[1759316005077,2.10580164,4288.3,4288.2,0.41958]
[1759316005279,2.52538164,4288.3,4288.2,0.41958]
[1759316005473,2.10580164,4288.3,4288.2,0.65458]
[1759316005674,2.10580164,4288.3,4288.2,0.41958]
[1759316005869,0.8568,4288.2,4288.1,0.6546]
[1759316006073,2.46800164,4288.2,4288.1,0.6546]
[1759316009277,1.287,4288.1,4288.0,0.41961]
[1759316009478,1.98002,4287.9,4287.8,0.41963]
[1759316009677,2.04840164,4287.9,4287.8,0.41963]
[1759316010984,2.46802164,4287.9,4287.8,0.41963]
[1759316012681,2.04840164,4287.9,4287.8,1.54053]
[1759316013077,2.04840164,4287.9,4287.8,1.27273]
[1759316013879,2.0396959,4287.9,4287.8,1.27273]
[1759316014683,2.0396959,4287.9,4287.8,0.41963]
[1759316014883,2.4593159,4287.9,4287.8,0.41963]
[1759316015283,2.0396959,4287.9,4287.8,0.84813]
[1759316016886,1.5604,4287.9,4287.8,0.84813]
[1759316017087,2.03984187,4287.9,4287.8,0.84813]
[1759316017491,2.45946187,4287.9,4287.8,0.41963]
[1759316017783,2.03984187,4287.9,4287.8,0.41963]
[1759316018995,2.45946187,4287.9,4287.8,0.41963]
[1759316019590,2.03984187,4287.9,4287.8,0.41963]
[1759316019798,2.45946187,4287.9,4287.8,0.41963]
[1759316022194,0.85683,4287.8,4287.7,0.65464]
[1759316022395,1.98004,4287.7,4287.6,0.60615]
[1759316022591,1.98004,4287.7,4287.6,0.84115]
[1759316022797,1.98004,4287.7,4287.6,0.65465]
[1759316023393,0.693,4287.7,4287.6,1.77555]
[1759316023994,0.9701,4288.0,4287.9,1.54052]
[1759316024196,0.693,4288.0,4287.9,4.98332]
[1759316024992,0.9701,4288.0,4287.9,4.98332]
[1759316025192,0.0233,4288.4,4288.3,0.41958]
[1759316025393,1.1535,4288.4,4288.3,1.50768]
[1759316025696,2.03979602,4288.4,4288.3,1.50768]
[1759316025894,2.45936602,4288.4,4288.3,1.50768]
[1759316026290,2.45936602,4288.4,4288.3,0.235]
[1759316026695,2.45936602,4288.4,4288.3,0.65458]
[1759316026897,2.45936602,4288.4,4288.3,0.235]
[1759316027296,2.45936602,4288.4,4288.3,0.65458]
[1759316028598,2.03979602,4288.4,4288.3,1.08308]
[1759316029501,2.03979602,4288.4,4288.3,0.65458]
[1759316031505,2.03979602,4288.4,4288.3,0.41958]
[1759316031712,2.45936602,4288.4,4288.3,0.65458]
[1759316032409,2.45936602,4288.4,4288.3,0.41958]
[1759316032711,1.97999,4288.2,4288.1,0.1865]
[1759316032912,2.45938602,4288.2,4288.1,0.1865]
[1759316033114,1.28703,4287.8,4287.7,0.41963]
[1759316033317,2.45942602,4287.8,4287.7,0.65463]
[1759316037119,2.45942602,4287.8,4287.7,0.235]
[1759316037607,2.45942602,4287.8,4287.7,0.65464]
[1759316037811,2.03979602,4287.8,4287.7,0.65464]